fUSD/lending_fUSD_20260214
["ID","MTS","AMOUNT","RATE_DAILY","PERIOD"]
[405355340,1771067443027,-151.0,0.00025,2]
[405355341,1771067443036,-150.0,0.00025,2]
[405355342,1771067443046,-151.0,0.00025,17]
[405355343,1771067443055,-2839.73408833,0.00025,2]
[405355345,1771067443064,-1999.15330172,0.00025,2]
[405355346,1771067443073,-208.41883888,0.00025,7]
[405355347,1771067443082,-151.0,0.00025,2]
[405355348,1771067443092,-151.0,0.00025,2]
[405355349,1771067443101,-151.0,0.00025,2]
[405355350,1771067443110,-500.0,0.00025011,7]
[405355351,1771067443120,-500.0,0.00025011,7]
[405355352,1771067443129,-800.0,0.00025011,7]
[405355353,1771067443138,-150.0,0.00025016,4]
[405355354,1771067443147,-165.06,0.00025089,2]
[405355355,1771067443157,-806.17845172,0.00025132,2]
[405355356,1771067443166,-1000.0,0.00025277,2]
[405355357,1771067443175,-312.34,0.00025296,120]
[405355358,1771067443184,-887.95,0.00025491,2]
[405355359,1771067443194,-165.06,0.00025521,2]
[405355360,1771067443203,-150.0,0.0002557,4]
[405355361,1771067443213,-150.0,0.00025674,4]
[405355362,1771067443222,-444.46726248,0.0002569,2]
[405355363,1771067443231,-150.0,0.0002589,2]
[405355364,1771067443241,-150.0,0.00025953,4]
[405355365,1771067443251,-513.981106,0.00025953,120]
[405355366,1771067443260,-298.24,0.0002601,2]
[405355367,1771067443269,-800.0,0.00026107,7]
[405355368,1771067443278,-150.0,0.00026123,4]
[405355369,1771067443287,-1105.0,0.00026389,2]
[405355370,1771067443297,-150.0,0.000264,4]
[405355371,1771067443307,-4450.00419666,0.00026447,2]
[405355372,1771067443317,-150.0,0.00026677,4]
[405355373,1771067443326,-227.59743472,0.00026707,56]
[405355374,1771067443335,-150.0,0.00026885,4]
[405355375,1771067443346,-150.0,0.00026885,4]
[405355376,1771067443355,-150.0,0.00026885,4]
[405355377,1771067443364,-150.0,0.00026885,4]
[405355378,1771067443374,-151.0,0.00027019,2]
[405355379,1771067443383,-176.7327853,0.00027175,15]
[405355380,1771067443392,-150.0,0.00027185,2]
[405355381,1771067443402,-500.0,0.00027203,7]
[405355382,1771067443411,-500.0,0.00027203,7]
[405355383,1771067443420,-800.0,0.00027203,7]
[405355384,1771067443429,-150.0,0.0002723,4]
[405355385,1771067443438,-162.39873872,0.00027236,2]
[405355386,1771067443448,-150.0,0.00027369,2]
[405355387,1771067443457,-1109.07692308,0.0002737,2]
[405355388,1771067443467,-870.69230769,0.0002737,2]
[405355389,1771067443476,-1068.0,0.0002737,2]
[405355390,1771067443485,-1113.0,0.0002737,2]
[405355391,1771067443495,-782.07692308,0.0002737,2]
[405355392,1771067443504,-879.23076923,0.0002737,2]
[405355393,1771067443514,-507.92307692,0.0002737,2]
[405355394,1771067443523,-545.76923077,0.0002737,2]
[405355395,1771067443533,-1110.0,0.0002737,2]
[405355396,1771067443542,-983.07692308,0.0002737,2]
[405355397,1771067443551,-506.07692308,0.0002737,2]
[405355398,1771067443561,-560.07692308,0.0002737,2]
[405355399,1771067443570,-822.92307692,0.0002737,2]
[405355400,1771067443579,-706.68752641,0.0002737,2]
[405355401,1771067443589,-380.52405268,0.0002737,2]
[405355402,1771067443598,-1727.45,0.00027397,30]
[405355403,1771067443609,-300.0,0.00027397,2]
[405355404,1771067443619,-500.0,0.00027397,20]
[405355405,1771067443629,-151.0,0.00027397,2]
[405355406,1771067443638,-151.0,0.00027397,2]
[405355407,1771067443648,-151.0,0.00027397,2]
[405355408,1771067443658,-151.0,0.00027397,2]
[405355409,1771067443668,-151.0,0.00027397,2]
[405355410,1771067443677,-151.0,0.00027397,2]
[405355411,1771067443686,-151.0,0.00027397,2]
[405355412,1771067443696,-151.0,0.00027397,2]
[405355413,1771067443705,-151.0,0.00027397,2]
[405355414,1771067443715,-151.0,0.00027397,2]
[405355415,1771067443724,-151.0,0.00027397,2]
[405355416,1771067443733,-151.0,0.00027397,2]
[405355417,1771067443743,-151.0,0.00027397,2]
[405355418,1771067443752,-151.0,0.00027397,2]
[405355419,1771067443762,-151.0,0.00027397,2]
[405355420,1771067443771,-151.0,0.00027397,2]
[405355421,1771067443780,-252.02178477,0.00027397,2]
[405355422,1771067443789,-150.0,0.00027443,7]
[405355423,1771067443799,-150.0,0.00027692,7]
[405355424,1771067443808,-150.0,0.00027692,7]
[405355425,1771067443817,-150.0,0.00027692,7]
[405355426,1771067443826,-151.0,0.00027715,7]
[405355427,1771067443835,-228.368915,0.00027715,7]
[405355428,1771067443844,-228.368915,0.00027715,7]
[405355429,1771067443853,-228.368915,0.00027715,7]
[405355430,1771067443863,-228.368915,0.00027715,7]
[405355431,1771067443872,-676.24,0.00027715,2]
[405355432,1771067443881,-2450.0,0.00027715,2]
[405355433,1771067443891,-150.0,0.00027784,7]
[405355434,1771067443900,-151.0,0.00028,2]
[405355435,1771067443909,-498.3169662,0.00028,2]
[405355436,1771067443919,-150.0,0.00028095,7]
[405355437,1771067443928,-800.0,0.00028299,14]
[405355438,1771067443939,-150.0,0.00028337,7]
[405355439,1771067443955,-150.0,0.00028337,7]
[405355440,1771067443964,-2603.58947065,0.00028513,2]
[405355441,1771067443973,-150.0,0.00028544,2]
[405355442,1771067443982,-441.22095614,0.00028719,2]
[405355443,1771067443992,-2135.81011192,0.0002876,120]
[405355444,1771067444001,-4450.00419666,0.00028809,2]
[405355445,1771067444010,-6961.532015,0.00028876,30]
[405355446,1771067444020,-1462.0595,0.00028876,30]
[405355447,1771067444029,-150.0,0.00028891,7]
[405355448,1771067444038,-129.19397242,0.00028933,7]
[405355449,1771067444576,-20.80602758,0.00028933,7]
[405355450,1771067444585,-152.0,0.00029119,4]
[405355451,1771067444595,-294.76046781,0.00029119,5]
[405355452,1771067444604,-63.69261721,0.00029167,11]
[405355456,1771067445267,-466.0,0.00025345,10]
[405355457,1771067445277,-199.208222,0.00027397,2]
[405355458,1771067445287,-199.208222,0.00027397,2]
[405355459,1771067445298,-199.208222,0.00027397,2]
[405355460,1771067445309,-199.208222,0.00027397,2]
[405355461,1771067445318,-199.208222,0.00027397,2]
[405355462,1771067445328,-199.208222,0.00027397,2]
[405355463,1771067445339,-199.208222,0.00027397,2]
[405355464,1771067445348,-199.208222,0.00027397,2]
[405355465,1771067445358,-199.208222,0.00027397,2]
[405355466,1771067445367,-105.11205356,0.00027397,2]
[405355467,1771067445380,-94.09616844,0.00027397,2]
[405355468,1771067445390,-199.208222,0.00027397,2]
[405355469,1771067445399,-199.208222,0.00027397,2]
[405355470,1771067445409,-455.30738279,0.00029167,11]
[405355471,1771067445418,-150.0,0.00029306,7]
[405355472,1771067445427,-150.0,0.00029306,7]
[405355473,1771067445437,-150.0,0.00029306,7]
[405355474,1771067445447,-150.0,0.00029306,7]
[405355475,1771067445456,-500.0,0.00029395,14]
[405355476,1771067445466,-500.0,0.00029395,14]
[405355477,1771067445475,-935.42996477,0.00029431,2]
[405355478,1771067445486,-1668.15950588,0.00029431,2]
[405355479,1771067445496,-150.0,0.00029444,7]
[405355480,1771067445506,-260.84049412,0.00029446,2]
[405355481,1771067445517,-761.51640287,0.00029446,2]
[405355482,1771067445527,-176.7327853,0.00029475,18]
[405355483,1771067445536,-974.0,0.00029479,2]
[405355484,1771067445545,-1410.40734751,0.000295,120]
[405355503,1771067446162,-199.208222,0.00027397,2]
[405355504,1771067446172,-199.208222,0.00027397,2]
[405355505,1771067446181,-199.208222,0.00027397,2]
[405355506,1771067446191,-199.208222,0.00027397,2]
[405355507,1771067446200,-199.208222,0.00027397,2]
[405355508,1771067446210,-199.208222,0.00027397,2]
[405355509,1771067446219,-470.0,0.00029167,10]
[405355510,1771067446228,-4985.46424465,0.000295,120]
[405355511,1771067446251,-199.208222,0.00027397,2]
[405355512,1771067446261,-22364.71464999,0.000295,120]
[405355513,1771067446271,-1000.0,0.00029516,2]
[405355514,1771067446280,-444.46726248,0.00029585,2]
[405355515,1771067446290,-2832.0,0.00029748,3]
[405355516,1771067446304,-1000.0,0.0002979,2]
[405355517,1771067446313,-800.0,0.00029943,14]
[405355518,1771067446323,-150.0,0.00029971,2]
[405355519,1771067446332,-150.0,0.00029998,7]
[405355520,1771067446343,-200.16280393,0.0003,120]
[405355521,1771067446352,-1681.30307182,0.0003,120]
[405355522,1771067446361,-1139.86807244,0.0003,120]
[405355523,1771067446372,-318.65399516,0.0003,120]
[405355524,1771067446385,-666.8747304,0.0003,120]
[405355525,1771067446463,-333.1252696,0.0003,120]
[405355526,1771067446473,-305.4647204,0.0003,120]
[405355528,1771068501477,159.9,0.00012213,2]
[405355538,1771068631445,-159.9,0.0001483,2]
[405355540,1771068631455,-195.0,0.0001547,2]
[405355542,1771068631465,-399.94652873,0.0001611,2]
[405355544,1771068631474,-500.0,0.00016111,2]
[405355545,1771068631483,-107.45347127,0.00016199,2]
[405355546,1771068631506,-192.54652873,0.00016199,2]
[405355547,1771068631515,-300.0,0.00016199,2]
[405355548,1771068631525,-241.16637669,0.00016199,2]
[405355549,1771068631537,-58.83362331,0.00016199,2]
[405355550,1771068631546,-300.0,0.00016199,2]
[405355551,1771068631556,-1001.36506421,0.000162,5]
[405355552,1771068631581,-600.0,0.000162,5]
[405355553,1771068631594,-724.22893706,0.000162,5]
[405355554,1771068631605,-101086.06570043,0.000162,5]
[405355555,1771068631613,-444.75,0.00016211,2]
[405355556,1771068631622,-549.43,0.00016211,2]
[405355557,1771068631632,-3240.0,0.00016211,2]
[405355558,1771068631641,-156.17,0.00016211,2]
[405355559,1771068631651,-200.84998891,0.00016313,2]
[405355560,1771068631661,-264.67450674,0.00016313,2]
[405355561,1771068631669,-195.0,0.00016313,2]
[405355562,1771068631678,-1000.0,0.00017329,2]
[405355563,1771068631688,-159.9,0.00017447,2]
[405355564,1771068631697,-301.48178018,0.00017579,2]
[405355565,1771068631706,-4021.93876265,0.00017588,2]
[405355566,1771068631715,-276.57185281,0.00017588,2]
[405355568,1771068631724,-500.0,0.00017588,2]
[405355570,1771068631733,-448.46575922,0.00017588,2]
[405355572,1771068631742,-500.0,0.00017588,2]
[405355574,1771068631751,-264.7325737,0.00017589,2]
[405355576,1771068631761,-77296.80779646,0.00017589,2]
[405355595,1771068637579,-1972.78274802,0.00017589,2]
[405355596,1771068637598,-1821.60830851,0.00017589,2]
[405355597,1771068637768,-3450.29759555,0.00017589,2]
[405355598,1771068637779,-404.3482089,0.00017589,2]
[405355599,1771068637790,-426.4607146,0.00017589,2]
[405355606,1771068639726,-1418.70868557,0.00017589,2]
[405355607,1771068639738,-20896.3436942,0.00017589,2]
[405355608,1771068639779,-8200.43062126,0.00017589,2]
[405355609,1771068639834,-701.235,0.00017589,2]
[405355610,1771068639845,-349.55444,0.00017589,2]
[405355638,1771068645415,-8463.46587623,0.00017589,2]
[405355639,1771068645427,-405.8537147,0.00017589,2]
[405355640,1771068645470,-331.16196365,0.00017589,2]
[405355641,1771068645582,-983.216,0.00017589,2]
[405355642,1771068645637,-53751.10159101,0.00017589,2]
[405355643,1771068645695,-4878.10100023,0.00017589,2]
[405355761,1771069249578,160.53,9.8e-05,2]
[405355764,1771069610123,-166.04954323,0.000151,2]
[405355769,1771069831671,-118.90045677,0.000151,2]
[405355770,1771069831681,-441.97624269,0.00015107,2]
[405355771,1771069831726,-511.11375731,0.00015107,2]
[405355772,1771069831736,-179.61,0.00015884,2]
[405355773,1771069831746,-191.51553176,0.00016393,2]
[405355774,1771069831756,-200.0,0.00016493,2]
[405355775,1771069831766,-191.51553175,0.00016565,2]
[405355776,1771069831776,-1000.0,0.00016619,2]
[405355777,1771069831785,-179.61,0.0001672,2]
[405355778,1771069831796,-191.51553175,0.00016736,2]
[405355779,1771069831805,-211.78605896,0.00016736,2]
[405355780,1771069831815,-300.0,0.00016825,2]
[405355781,1771069831825,-500.0,0.00016826,2]
[405355782,1771069831834,-151.0,0.00016826,2]
[405355784,1771069831844,-500.0,0.00016826,2]
[405355786,1771069831853,-2820.24184248,0.00016826,2]
[405355787,1771069831863,-309.37421653,0.00016826,2]
[405355788,1771069831872,-500.0,0.00016835,2]
[405355789,1771069831882,-193.60029697,0.00016835,2]
[405355791,1771069831891,-259.10768127,0.00016835,2]
[405355793,1771069831905,-213.98048326,0.00016835,2]
[405355795,1771069831915,-69.87757674,0.00016835,2]
[405355798,1771069831936,-430.12242326,0.00016835,2]
[405355800,1771069831947,-367.18765686,0.00016835,2]
[405355802,1771069831958,-500.0,0.00016835,2]
[405355805,1771069831968,-500.0,0.00016835,2]
[405355807,1771069831979,-258.30628226,0.00016835,2]
[405355808,1771069831988,-579.85,0.00016835,2]
[405355809,1771069831998,-2006.29113857,0.00016836,2]
[405355810,1771069837701,-486.00000005,0.00016836,2]
[405355811,1771069837714,-10241.7408808,0.00016836,2]
[405355812,1771069837758,-79250.14546242,0.00016836,2]
[405355813,1771069837770,-509.0561271,0.00016836,2]
[405355814,1771069837810,-35127.5,0.00016836,2]
[405355815,1771069837865,-3445.3,0.00016836,2]
[405355818,1771069839716,-1467.51116128,0.00016736,2]
[405355819,1771069839727,-11292.580899,0.00016736,2]
[405355820,1771069839737,-33035.56149828,0.00016836,2]
[405355821,1771069839770,-3432.86298923,0.00016836,2]
[405355822,1771069839876,-459.17851929,0.00016836,2]
[405355823,1771069839888,-259.72007751,0.00016836,2]
[405355825,1771069840051,-2109.4859079,0.00016836,2]
[405355837,1771069845589,-453.12387998,0.00016836,2]
[405355838,1771069845799,-2737.5,0.00016836,2]
[405355896,1771071031859,-662.96,0.00016303,2]
[405355897,1771071031912,-111.14,0.00016303,2]
[405355898,1771071031922,-171.02996778,0.00016303,2]
[405355899,1771071031932,-315.02,0.00016324,2]
[405355900,1771071031941,-500.0,0.00016346,2]
[405355901,1771071031952,-3685.02878492,0.00016436,2]
[405355902,1771071031962,-2110.5812473,0.00016436,2]
[405355903,1771071031974,-355.00000001,0.00016436,2]
[405355917,1771071037905,-2035.05314332,0.00016436,2]
[405355918,1771071037917,-2291.76037777,0.00016436,2]
[405355919,1771071038015,-4135.41251223,0.00016436,2]
[405355986,1771071039977,-556.27557364,0.00016436,2]
[405355987,1771071039988,-437.67451728,0.00016436,2]
[405355988,1771071039998,-206.24947769,0.00016526,2]
[405355989,1771071040014,-1000.0,0.00016535,2]
[405355990,1771071040033,-500.0,0.00016535,2]
[405355991,1771071040051,-381.37537689,0.00016535,2]
[405355992,1771071040073,-300.0,0.00016535,2]
[405355993,1771071040088,-32002.49140804,0.00016536,2]
[405355994,1771071040134,-2512.3783548,0.00016536,2]
[405355995,1771071040193,-1079159.52883716,0.00016536,2]
[405355996,1771071040215,-166.7337,0.00016536,2]
[405355997,1771071040229,-80673.5967,0.00016536,2]
[405355998,1771071040249,-500.0,0.00016635,2]
[405355999,1771071040262,-500.0,0.00016635,2]
[405356000,1771071040279,-500.0,0.00016635,2]
[405356001,1771071040295,-500.0,0.00016635,2]
[405356002,1771071040311,-502.90864516,0.00016635,2]
[405356003,1771071040325,-500.0,0.00016635,2]
[405356004,1771071040341,-500.0,0.00016635,2]
[405356005,1771071040356,-500.0,0.00016635,2]
[405356006,1771071040370,-500.0,0.00016635,2]
[405356007,1771071040385,-500.0,0.00016635,2]
[405356008,1771071040400,-500.0,0.00016635,2]
[405356009,1771071040414,-500.0,0.00016635,2]
[405356010,1771071040429,-500.0,0.00016635,2]
[405356011,1771071040443,-337.65465221,0.00016635,2]
[405356012,1771071040459,-2500.0,0.00016735,2]
[405356013,1771071040474,-200.0,0.00016813,2]
[405356014,1771071040490,-150.99,0.00016813,2]
[405356015,1771071040505,-500.0,0.00016833,2]
[405356016,1771071040521,-425.65,0.00016833,2]
[405356017,1771071040536,-5911.72,0.00016833,2]
[405356018,1771071040551,-9999.99,0.00016835,2]
[405356019,1771071040566,-9999.99,0.00016835,2]
[405356020,1771071040581,-999.99,0.00016835,2]
[405356021,1771071040596,-349.55867009,0.00016835,2]
[405356022,1771071040611,-1000.0,0.00016836,2]
[405356023,1771071040625,-758.16,0.00016836,2]
[405356024,1771071040643,-150.99,0.00016836,2]
[405356025,1771071040657,-151.0,0.00016836,2]
[405356026,1771071040672,-232.84393384,0.00016836,2]
[405356027,1771071040687,-18667.04,0.00016919,2]
[405356028,1771071040701,-169.3271625,0.00016936,2]
[405356029,1771071040716,-55120.3588934,0.00016996,2]
[405356030,1771071040730,-364.613,0.00017036,2]
[405356031,1771071040745,-189.96,0.000171,2]
[405356032,1771071040761,-1715.3368562,0.00017106,2]
[405356033,1771071040775,-437.67451726,0.00017168,2]
[405356034,1771071040789,-603.86674522,0.00017351,2]
[405356035,1771071040804,-179.61,0.00017556,2]
[405356036,1771071040819,-2000.0,0.00017589,2]
[405356037,1771071040835,-200.0,0.00017589,2]
[405356038,1771071040850,-500.0,0.00017589,2]
[405356039,1771071040865,-500.0,0.00017808,2]
[405356040,1771071040880,-500.0,0.00017808,2]
[405356041,1771071040894,-500.0,0.00017808,2]
[405356042,1771071040906,-500.0,0.00017808,2]
[405356043,1771071040918,-500.0,0.00017808,2]
[405356044,1771071040931,-466.72618858,0.00017808,2]
[405356045,1771071040943,-500.0,0.00017808,2]
[405356046,1771071040955,-500.0,0.00017808,2]
[405356047,1771071040970,-500.0,0.00017808,2]
[405356048,1771071040982,-500.0,0.00017808,2]
[405356049,1771071040995,-500.0,0.00017808,2]
[405356050,1771071041006,-355.00000001,0.00017808,2]
[405356051,1771071041021,-332.2113108,0.000179,2]
[405356052,1771071041037,-2473.4099972,0.000179,2]
[405356053,1771071041052,-2473.40999712,0.000179,2]
[405356054,1771071041068,-437.67451726,0.000179,2]
[405356055,1771071041083,-250.0,0.00017933,2]
[405356056,1771071041097,-150.0,0.00017936,2]
[405356057,1771071041113,-500.0,0.00017999,2]
[405356058,1771071041129,-500.0,0.00017999,2]
[405356059,1771071041143,-309752.49172888,0.00018,2]
[405356060,1771071041158,-143550.71032636,0.00018,2]
[405356061,1771071041174,-151.0,0.00018,2]
[405356062,1771071041192,-151.0,0.00018,2]
[405356063,1771071041204,-151.0,0.00018,2]
[405356064,1771071041215,-151.0,0.00018,2]
[405356065,1771071041225,-151.0,0.00018,2]
[405356066,1771071041235,-151.0,0.00018,2]
[405356067,1771071041245,-151.0,0.00018,2]
[405356068,1771071041254,-151.0,0.00018,2]
[405356069,1771071041516,-151.0,0.00018,2]
[405356070,1771071041533,-151.0,0.00018,2]
[405356071,1771071041542,-151.0,0.00018,2]
[405356072,1771071041551,-151.0,0.00018,2]
[405356073,1771071041561,-151.0,0.00018,2]
[405356074,1771071041571,-151.0,0.00018,2]
[405356075,1771071041581,-151.0,0.00018,2]
[405356076,1771071041591,-242.77662719,0.00018,2]
[405356077,1771071041601,-151.0,0.00018,2]
[405356078,1771071041610,-368.26,0.00018042,2]
[405356079,1771071041619,-420.0,0.00018068,2]
[405356080,1771071041630,-2644.33,0.0001828,2]
[405356081,1771071041640,-2473.40999712,0.00018465,2]
[405356082,1771071041649,-162.39873872,0.00018566,2]
[405356083,1771071041659,-404.0,0.00018695,2]
[405356084,1771071041669,-377.0,0.00018695,2]
[405356085,1771071041678,-377.0,0.00018695,2]
[405356086,1771071041688,-377.0,0.00018695,2]
[405356087,1771071041697,-489.0,0.00018695,2]
[405356088,1771071041707,-1000.0,0.00018697,2]
[405356089,1771071041717,-3685.02878485,0.0001886,2]
[405356090,1771071041726,-11484.08285419,0.0001886,2]
[405356091,1771071041736,-156.17,0.00018913,2]
[405356092,1771071041745,-520.0,0.00019,2]
[405356093,1771071041756,-150.0,0.0001911,14]
[405356094,1771071041766,-166.66,0.00019147,2]
[405356095,1771071041776,-12299.0145073,0.00019164,2]
[405356096,1771071041786,-166.0,0.00019377,2]
[405356097,1771071041796,-1507.0,0.00019401,2]
[405356098,1771071041806,-152.0,0.00019401,2]
[405356099,1771071041815,-1507.0,0.00019401,2]
[405356100,1771071041824,-152.0,0.00019401,2]
[405356101,1771071041833,-153.0,0.00019401,2]
[405356102,1771071041843,-276.70074126,0.00019401,2]
[405356103,1771071041852,-1507.0,0.00019401,2]
[405356104,1771071041861,-1499.0,0.00019401,2]
[405356105,1771071041872,-300.0,0.00019401,2]
[405356106,1771071041882,-2473.40999712,0.00019479,2]
[405356107,1771071041892,-2744.2810766,0.00019648,2]
[405356108,1771071041901,-587.0,0.00019744,2]
[405356109,1771071041912,-166.66,0.00019779,2]
[405356110,1771071041923,-676.24,0.00019817,2]
[405356111,1771071041932,-2450.0,0.00019817,2]
[405356112,1771071041942,-6595.0,0.00019817,2]
[405356113,1771071041951,-371.94,0.00019817,2]
[405356114,1771071041961,-841.0,0.00020379,2]
[405356115,1771071041970,-166.66,0.00020411,2]
[405356116,1771071041979,-2473.40999712,0.00020493,2]
[405356117,1771071041990,-1000.0,0.00020774,2]
[405356118,1771071042000,-2832.0,0.00021019,2]
[405356119,1771071042009,-166.0,0.00021019,2]
[405356120,1771071042019,-166.66,0.00021043,2]
[405356121,1771071042028,-2832.0,0.00021163,2]
[405356122,1771071042038,-841.0,0.00021163,2]
[405356123,1771071042050,-806.17845172,0.00021269,2]
[405356124,1771071042059,-3685.02878485,0.00021285,2]
[405356125,1771071042068,-11484.08285419,0.00021285,2]
[405356126,1771071042078,-2473.40999712,0.00021508,2]
[405356127,1771071042087,-176.0,0.00021575,2]
[405356128,1771071042097,-156.17,0.00021614,2]
[405356129,1771071042106,-166.66,0.00021675,2]
[405356130,1771071042116,-5000.0,0.00021918,2]
[405356131,1771071042126,-163.91,0.00022,2]
[405356132,1771071042136,-332.2113108,0.00022079,2]
[405356133,1771071042146,-166.66,0.00022307,2]
[405356134,1771071042155,-1105.0,0.00022332,2]
[405356135,1771071042165,-2830.0,0.00022542,2]
[405356136,1771071042175,-162.0,0.00022542,2]
[405356137,1771071042184,-800.0,0.00022578,8]
[405356138,1771071042194,-800.0,0.00022578,8]
[405356139,1771071042205,-800.0,0.00022578,8]
[405356140,1771071042216,-800.0,0.00022578,8]
[405356141,1771071042225,-800.0,0.00022578,8]
[405356142,1771071042234,-800.0,0.00022578,8]
[405356143,1771071042247,-591.90258504,0.00022578,8]
[405356144,1771071042256,-2832.0,0.00022604,3]
[405356145,1771071042265,-2011.04,0.00022681,2]
[405356146,1771071042275,-1679.566,0.00022817,2]
[405356147,1771071042286,-6586.0,0.00022817,2]
[405356148,1771071042296,-151.0,0.00022817,2]
[405356149,1771071042306,-151.0,0.00022817,2]
[405356150,1771071042316,-151.0,0.00022817,2]
[405356151,1771071042325,-151.0,0.00022817,2]
[405356152,1771071042335,-173.426974,0.00022817,2]
[405356153,1771071042344,-151.0,0.00022817,2]
[405356154,1771071042355,-1000.0,0.00022851,2]
[405356155,1771071042364,-160.0,0.00023,2]
[405356156,1771071042378,-5911.72,0.00023567,2]
[405356157,1771071042388,-3685.02878485,0.00023709,2]
[405356158,1771071042398,-11484.08285419,0.00023709,2]
[405356159,1771071042407,-2011.04,0.00023815,2]
[405356160,1771071042418,-438.61785,0.0002399,30]
[405356161,1771071042428,-2088.459604,0.0002399,30]
[405356162,1771071042439,-150.0,0.00024231,2]
[405356163,1771071042449,-156.17,0.00024316,2]
[405356164,1771071042459,-1000.0,0.00024658,2]
[405356165,1771071042469,-150.0,0.00024658,2]
[405356166,1771071042478,-1000.0,0.00024929,2]
[405356167,1771071042488,-2011.04,0.00024949,2]
[405356168,1771071042497,-156.96,0.00025023,2]
[405356169,1771071042507,-430.0,0.0002504,10]
[405356170,1771071042517,-520.0,0.00025778,8]
[405356171,1771071042526,-150.0,0.0002589,2]
[405356172,1771071042536,-513.981106,0.00025995,120]
[405356173,1771071042545,-500.0,0.00026082,2]
[405356174,1771071042554,-487.0,0.00026082,2]
[405356175,1771071042563,-487.0,0.00026082,2]
[405356176,1771071042573,-487.0,0.00026082,2]
[405356177,1771071042582,-487.0,0.00026082,2]
[405356178,1771071042592,-487.0,0.00026082,2]
[405356179,1771071042601,-909.77,0.00026082,2]
[405356180,1771071042611,-2011.04,0.00026083,2]
[405356181,1771071042620,-3685.02878485,0.00026134,2]
[405356182,1771071042629,-11484.08285419,0.00026134,2]
[405356183,1771071042639,-332.2113108,0.00026257,2]
[405356184,1771071042649,-500.0,0.00026576,2]
[405356185,1771071042658,-257.91778498,0.00026576,2]
[405356186,1771071042667,-250.0,0.00026576,2]
[405356187,1771071042676,-250.0,0.00026576,2]
[405356188,1771071042686,-250.0,0.00026576,2]
[405356189,1771071042695,-283.34981694,0.00026576,2]
[405356190,1771071042704,-250.0,0.00026576,2]
[405356191,1771071042715,-953.09,0.00026887,2]
[405356192,1771071042726,-393.244527,0.00027,2]
[405356193,1771071042736,-164.0,0.00027014,3]
[405356194,1771071042746,-287.61899177,0.00027124,2]
[405356195,1771071042757,-150.0,0.00027185,2]
[405356196,1771071042767,-2011.04,0.00027217,2]
[405356197,1771071042777,-1000.0,0.00027324,2]
[405356198,1771071042788,-150.0,0.00027369,2]
[405356199,1771071042798,-573.46153846,0.0002737,2]
[405356200,1771071042808,-1116.92307692,0.0002737,2]
[405356201,1771071042819,-816.69230769,0.0002737,2]
[405356202,1771071042830,-249.49261293,0.0002737,2]
[405356203,1771071042840,-389.92066937,0.00027397,2]
[405356204,1771071042849,-300.0,0.00027397,2]
[405356205,1771071042859,-227.91529304,0.00027397,14]
[405356206,1771071042868,-500.0,0.00027397,20]
[405356207,1771071042878,-1754.32,0.00027397,30]
[405356208,1771071042887,-151.0,0.00027397,2]
[405356209,1771071042898,-151.0,0.00027397,2]
[405356210,1771071042909,-151.0,0.00027397,2]
[405356211,1771071042919,-151.0,0.00027397,2]
[405356212,1771071042930,-151.0,0.00027397,2]
[405356213,1771071042939,-151.0,0.00027397,2]
[405356214,1771071042948,-151.0,0.00027397,2]
[405356215,1771071042959,-151.0,0.00027397,2]